Cogmind - Beta 16 @@@ ROGUE MODE // 2025.11.08 @ 18:32:04 Player: Red Box Result: Self-destructed Performance ------------- Evolutions (2) 1000 Regions Visited (5) 1000 Robots Destroyed (27) 135 Value Destroyed (622) 622 Prototype IDs (3) 60 Alien Tech Used (0) 0 Bonus (0) 0 TOTAL SCORE: 2817 Bonus ------- None Cogmind --------- Core Integrity 503/550 Matter 280/300 Energy 100/100 System Corruption 9% Temperature Cool (0) Movement Walking (190) Ox1 Location -8/Materials Parts ------- > --- POWER (1) -------- (None) > --- PROPULSION (2) --- Aluminum Leg Aluminum Leg > --- UTILITY (5) ------ Improved Heat Sink Large Storage Unit > --- WEAPON (3) ------- EM Shotgun > --- INVENTORY (15) --- Deuterium Engine Light Treads Light Treads Compact Wheel Armored Wheel High-capacity Matter Pod (200) Experimental Sensor Array EM Shotgun EM Shotgun Autogun Autogun Autogun Grenade Launcher Mace Peak State ------------ > --- POWER ------------ Ion Engine > --- PROPULSION ------- Aluminum Leg Aluminum Leg > --- UTILITY ---------- Large Storage Unit Experimental Sensor Array > --- WEAPON ----------- EM Shotgun EM Shotgun > --- INVENTORY -------- Light Treads Light Treads Wheel Compact Wheel Improved Heat Sink High-capacity Matter Pod EM Shotgun EM Shotgun EM Shotgun EM Shotgun Autogun Autogun Autogun Grenade Launcher Hammer [Rating: 19] Favorites ----------- Power Light Ion Engine Engine Light Ion Engine Propulsion Aluminum Leg Leg Aluminum Leg Utility Large Storage Unit Device Improved Terrain Scanner Storage Large Storage Unit Protection Weapon Shielding Weapon EM Shotgun Energy Gun EM Shotgun Ballistic Gun Light Assault Rifle Launcher Grenade Launcher Impact Weapon Hammer Build | -11 -10 -10 -10 -9 -8 ------- Run | Yrd Mat Min Exi Min Mat Slots Evolved 4 | . . . . . 4 Power . | . . . . . . Propulsion . | . . . . . . Utility 3 | . . . . . 3 Weapon 1 | . . . . . 1 Parts Attached 30 | 7 16 3 1 . 3 Power 4 | 1 2 1 . . . Engine 4 | 1 2 1 . . . Core . | . . . . . . Reactor . | . . . . . . Propulsion 6 | 2 4 . . . . Treads . | . . . . . . Leg 6 | 2 4 . . . . Wheel . | . . . . . . Hover . | . . . . . . Flight . | . . . . . . Utility 8 | 2 3 1 1 . 1 Device 3 | 1 . 1 . . 1 Storage 4 | 1 2 . 1 . . Processor . | . . . . . . Hackware . | . . . . . . Protection 1 | . 1 . . . . Artifact . | . . . . . . Weapon 12 | 2 7 1 . . 2 Energy Gun 8 | 1 5 1 . . 1 Energy Cannon . | . . . . . . Ballistic Gun 1 | 1 . . . . . Ballistic Cannon . | . . . . . . Launcher 1 | . 1 . . . . Special Weapon . | . . . . . . Impact Weapon 2 | . 1 . . . 1 Slashing Weapon . | . . . . . . Piercing Weapon . | . . . . . . Special Melee Weapon . | . . . . . . Unidentified Prototypes 1 | . . 1 . . . Parts Lost 5 | . 1 . . . 4 Power 1 | . . . . . 1 Propulsion . | . . . . . . Utility 1 | . . . . . 1 Weapon 3 | . 1 . . . 2 Highest Loss Streak 4 | . 1 . . . 4 To Critical Strikes . | . . . . . . Average Backups 12 | 3 10 14 15 14 13 Power . | . . . . . . Propulsion 3 | 3 4 4 4 4 4 Utility 1 | . 1 2 3 3 2 Weapon 6 | . 4 8 8 7 7 Tool/Special . | . . . . . . Unused Backups 14 | . 2 . . 1 11 Power 1 | . . . . . 1 Propulsion 5 | . . . . 1 4 Utility 1 | . . . . . 1 Weapon 7 | . 2 . . . 5 Tool/Special . | . . . . . . Average Slot Usage (%) 99 | . 99 99 100 100 80 Engine 13 | . 14 14 14 14 9 Leg 27 | . 28 28 28 28 18 Device 4 | . 8 . . . 8 Storage 13 | . 14 14 14 14 9 Protection 9 | . 5 13 14 14 9 Energy Gun 26 | . 24 28 28 28 25 Peak Build Rating 19 | 9 13 19 12 12 17 Average Rating 10 | 5 10 11 12 12 16 On Entrance 9 | . 9 11 12 12 12 Avg Prop Armor Cover (%) . | . . . . . . Naked Turns . | . . . . . . Heaviest Build 36 | 12 30 32 32 32 36 Greatest Support 20 | 20 20 20 20 20 20 Greatest Overweight (x) 1 | 1 1 1 1 1 1 Average Overweight (x) . | . . 1 1 1 1 Largest Inventory Capacity 15 | 8 15 15 15 15 15 Average Capacity 13 | 7 11 15 15 15 15 Most Carried 15 | 6 15 15 15 15 14 Average Carried 12 | 3 10 14 15 14 13 Final Capacity 15 | 8 15 15 15 15 15 Final Carried 15 | 6 15 15 15 15 14 Class Distribution -------------------- 96% | Mutant Dominant Class ---------------- Mutant | -10/Materials Mutant | -10/Mines Mutant | -10/Exiles Mutant | -9/Mines Commander-Tank | -8/Materials Resources | -11 -10 -10 -10 -9 -8 ----------- Run | Yrd Mat Min Exi Min Mat Matter Collected 811 | 211 495 95 . 10 . Remotely . | . . . . . . Salvage Created 862 | 54 591 217 . . . Parts 58 | 6 35 17 . . . Haulers Intercepted 1 | . 1 . . . . Recyclers Shooed . | . . . . . . Parts Field Recycled . | . . . . . . Retrieved Matter . | . . . . . . Parts Self-Destructed . | . . . . . . Prevented . | . . . . . . Parts Restored . | . . . . . . Kills | -11 -10 -10 -10 -9 -8 ------- Run | Yrd Mat Min Exi Min Mat Combat Hostiles Destroyed 19 | . 12 7 . . . Guns 12 | . 7 5 . . . AOE 7 | . 5 2 . . . Classes Destroyed 7 | 1 6 . . . . Worker 1 | . 1 . . . . Tunneler 2 | 2 . . . . . Hauler 1 | . 1 . . . . Recycler 1 | . 1 . . . . Watcher 3 | . 3 . . . . Swarmer 6 | . 3 3 . . . Grunt 13 | . 9 4 . . . Best Kill Streak 5 | 2 4 5 . . . Combat Bots Only 5 | . 3 5 . . . Max Kills in Single Turn 3 | 1 2 3 . . . Gunslinging 1 | . 1 . . . . Exploded 2 | . 2 2 . . . Melee . | . . . . . . Uniques/NPCs Destroyed . | . . . . . . Combat | -11 -10 -10 -10 -9 -8 -------- Run | Yrd Mat Min Exi Min Mat Hostile Shots Fired 52 | . 31 17 . . 4 Missed 16 | . 11 5 . . . Hits 36 | . 20 12 . . 4 Projectile 36 | . 20 12 . . 4 Critical Strikes 1 | . 1 . . . . Damage Taken 886 | . 306 160 . . 420 Core 122 | . 38 37 . . 47 Absorbed by Shields . | . . . . . . Redirected to Shielding 67 | . . 17 . . 50 Regen/Repaired (Parts) 31 | . 31 . . . . Core Remaining (%) 85 | 100 . . . 70 . Volleys Fired 45 | 9 27 9 . . . Largest 2 | 2 2 2 . . . Hottest 90 | 60 90 90 . . . Shots Fired 87 | 18 52 17 . . . Gun 80 | 18 46 16 . . . Cannon . | . . . . . . Launcher 7 | . 6 1 . . . Special . | . . . . . . Kinetic 16 | 9 7 . . . . Thermal . | . . . . . . Explosive 7 | . 6 1 . . . Electromagnetic 64 | 9 39 16 . . . Robot Hit Streak 7 | 3 7 5 . . . Robot Miss Streak 5 | 2 5 3 . . . Penetration Max . | . . . . . . Secondary Targets 3 | . 1 2 . . . Max Gunslinging Chain 1 | . 1 1 . . . Shots Hit Robots 60 | 8 39 13 . . . Core Hits 44 | 3 28 13 . . . Critical Kills . | . . . . . . Critical Parts Destroyed . | . . . . . . Critical Strikes . | . . . . . . Melee Attacks 19 | . 14 . . . 5 Impact 19 | . 14 . . . 5 Slashing . | . . . . . . Piercing . | . . . . . . Sneak Attacks . | . . . . . . Combat Hostiles . | . . . . . . Follow-up Attacks . | . . . . . . Damage Inflicted 1416 | 97 1082 237 . . . Guns 770 | 97 523 150 . . . Cannons . | . . . . . . Explosions 646 | . 559 87 . . . Melee . | . . . . . . Ramming . | . . . . . . Kinetic 65 | 32 33 . . . . Thermal 120 | . 62 58 . . . Explosive 526 | . 497 29 . . . Electromagnetic 705 | 65 490 150 . . . Impact . | . . . . . . Slashing . | . . . . . . Piercing . | . . . . . . Highest Corruption . | . . . . . . Average Corruption . | . . . . . . Corruption Purged . | . . . . . . Corruption Blocked . | . . . . . . Overload Shots . | . . . . . . Overflow Damage 28 | . 28 . . . . Projectiles . | . . . . . . Explosions 28 | . 28 . . . . Melee . | . . . . . . Knockbacks . | . . . . . . Impact . | . . . . . . Kinetic . | . . . . . . Secondary . | . . . . . . Self-Inflicted Damage 64 | . 34 30 . . . Shots 3 | . 2 1 . . . Rammed . | . . . . . . Targets Rammed . | . . . . . . Kicked . | . . . . . . Crushed . | . . . . . . Highest Temperature 174 | 60 174 132 . . . Average Temperature 44 | 27 44 55 . . . Received Heat Transfer 195 | . 135 42 . . 18 Siege Activations . | . . . . . . Martial Activations . | . . . . . . Shielding Activations . | . . . . . . Robots Disrupted 1 | . 1 . . . . Combat Hostiles . | . . . . . . Robots Corrupted . | . . . . . . Combat Hostiles . | . . . . . . Parts Fried . | . . . . . . Impact Corruptions . | . . . . . . Robots Melted . | . . . . . . Combat Hostiles . | . . . . . . Parts Melted . | . . . . . . Heat Transferred 150 | . 50 100 . . . Parts Sabotaged . | . . . . . . Parts Stolen . | . . . . . . Parts Stripped . | . . . . . . Power Chain Reactions 4 | . 3 1 . . . Alert | -11 -10 -10 -10 -9 -8 ------- Run | Yrd Mat Min Exi Min Mat Maximum Alert Level 1 | . 1 . . . . Low Security (%) 99 | 100 98 100 . 100 100 Level 1 . | . 1 . . . . Level 2 . | . . . . . . Level 3 . | . . . . . . Level 4 . | . . . . . . Level 5 . | . . . . . . High Security . | . . . . . . Max Security . | . . . . . . Peak Influence 210 | 5 210 125 . . 5 Initial 3 | . 3 . . . . Average 39 | 1 65 11 . . . Influence Increases 758 | 10 555 185 . . 8 Destroy 0b10 Robot/C 380 | . 240 140 . . . Destroy 0b10 Robot/NC 40 | 10 30 . . . . Destroy Leader 98 | . 68 30 . . . Successful Hack 48 | . 43 . . . 5 Select Force Hacks 30 | . 30 . . . . Disable Machine 15 | . 15 . . . . Destroy Structure 72 | . 54 15 . . 3 Partial Spotted 15 | . 15 . . . . Lose Combat Pursuer 60 | . 60 . . . . Influence Decreases 758 | 5 560 185 . . 8 Entered New Map 2 | . 2 . . . . Time Decay 745 | 5 548 185 . . 7 Lost Part 11 | . 10 . . . 1 Squads Dispatched 5 | . 5 . . . . Investigation 4 | . 4 . . . . Extermination . | . . . . . . Reinforcement 1 | . 1 . . . . Assault . | . . . . . . Garrison . | . . . . . . Intercept . | . . . . . . Searches Triggered . | . . . . . . Construction Impeded . | . . . . . . Haulers Reinforced . | . . . . . . Active Scanning Responses . | . . . . . . Cargo Convoy Interrupts . | . . . . . . Stealth | -11 -10 -10 -10 -9 -8 --------- Run | Yrd Mat Min Exi Min Mat Distress Signals 2 | . 1 . . . 1 Communications Jammed . | . . . . . . Distress Signals . | . . . . . . Times Spotted 28 | . 19 7 . . 2 Peak Tracking Total 5 | . 4 5 . . 2 Tactical Retreats 2 | . 2 . . . . Traps | -11 -10 -10 -10 -9 -8 ------- Run | Yrd Mat Min Exi Min Mat Traps Triggered 2 | . 2 . . . . Indirectly . | . . . . . . Trap Hack Attempts . | . . . . . . Triggered . | . . . . . . Disarmed . | . . . . . . Reprogrammed . | . . . . . . Reused . | . . . . . . Traps Extracted . | . . . . . . Installed . | . . . . . . Triggered . | . . . . . . Machines | -11 -10 -10 -10 -9 -8 ---------- Run | Yrd Mat Min Exi Min Mat Machines Disabled 1 | . 1 . . . . Max in Single Turn 1 | . 1 . . . . Machines Repaired . | . . . . . . Machines Dismantled . | . . . . . . Machines Sabotaged . | . . . . . . Overloaded Fab Kills . | . . . . . . Hacking | -11 -10 -10 -10 -9 -8 --------- Run | Yrd Mat Min Exi Min Mat Machines Accessed 15 | . 10 1 2 . 2 Terminals 10 | . 7 1 . . 2 Fabricators . | . . . . . . Repair Stations 1 | . 1 . . . . Recycling Units 2 | . 2 . . . . Scanalyzers . | . . . . . . Garrison Access . | . . . . . . Total Hacks 60 | . 34 3 13 . 10 Successful 37 | . 18 1 13 . 5 Failed 23 | . 16 2 . . 5 Catastrophic 3 | . 3 . . . . Database Lockouts . | . . . . . . Manual 30 | . 16 4 . . 10 Terminals 38 | . 25 3 . . 10 Fabricators . | . . . . . . Repair Stations 4 | . 4 . . . . Recycling Units 5 | . 5 . . . . Scanalyzers . | . . . . . . Garrison Access . | . . . . . . Terminal Hacks 21 | . 6 1 13 . 1 Record 13 | . . . 13 . . Part Schematic 1 | . . 1 . . . Robot Analysis 3 | . 3 . . . . Prototype ID Bank 1 | . 1 . . . . Terminal Index 2 | . 1 . . . 1 Locate Traps 1 | . 1 . . . . Fabricator Hacks . | . . . . . . Repair Station Hacks 4 | . 4 . . . . Scan Component 2 | . 2 . . . . Repair 2 | . 2 . . . . Recycling Unit Hacks 2 | . 2 . . . . Retrieve Components 2 | . 2 . . . . Scanalyzer . | . . . . . . Garrison Access Hacks . | . . . . . . Unauthorized Hacks 10 | . 6 . . . 4 Terminals 9 | . 5 . . . 4 Assimilate 3 | . 2 . . . 1 Botnet 4 | . 2 . . . 2 Operators 2 | . 1 . . . 1 Fabricators . | . . . . . . Repair Stations . | . . . . . . Recycling Units 1 | . 1 . . . . Tunnel 1 | . 1 . . . . Scanalyzers . | . . . . . . Garrison Access . | . . . . . . Data Cores Recovered . | . . . . . . Used . | . . . . . . Hacking Detections 11 | . 8 1 . . 2 Full Trace Events 7 | . 6 1 . . . Feedback Events . | . . . . . . Feedback Blocked . | . . . . . . Robot Schematics Acquired . | . . . . . . Robots Built . | . . . . . . Authchips . | . . . . . . Time . | . . . . . . Total Robot Build Rating . | . . . . . . Part Schematics Acquired 1 | . . 1 . . . Parts Built . | . . . . . . Authchips . | . . . . . . Time . | . . . . . . Total Part Build Rating . | . . . . . . Part Studies Acquired . | . . . . . . Parts Repaired 2 | . 2 . . . . Time 64 | . 64 . . . . Parts Recycled . | . . . . . . Recycled Matter . | . . . . . . Retrieved Matter . | . . . . . . Retrieved Components 17 | . 17 . . . . Parts Scanalyzed . | . . . . . . Part Schematics Acquired . | . . . . . . Parts Damaged . | . . . . . . Bothacking | -11 -10 -10 -10 -9 -8 ------------ Run | Yrd Mat Min Exi Min Mat Used RIF Installer . | . . . . . . Robots Hacked . | . . . . . . Non-combat . | . . . . . . Combat . | . . . . . . Robot Hacks Applied . | . . . . . . Relay Couplers Released . | . . . . . . Fabnet Peak Effective % . | . . . . . . Robots Rewired 1 | . 1 . . . . Allies Hacked . | . . . . . . Hacks Repelled . | . . . . . . Allies | -11 -10 -10 -10 -9 -8 -------- Run | Yrd Mat Min Exi Min Mat Total Allies 5 | . 2 . . 3 . Largest Group 5 | . 1 2 2 5 5 Highest-Rated Group 60 | . 10 20 20 60 60 Highest-Rated Ally 16 | . 10 10 10 16 16 Total Orders 10 | . 6 3 . . 1 STAY 5 | . 3 1 . . 1 FOLLOW 5 | . 3 2 . . . Ally Attacks 1 | . . . . . 1 Total Damage 13 | . . . . . 13 Kills . | . . . . . . Allies Corrupted . | . . . . . . Allies Melted . | . . . . . . Intel | -11 -10 -10 -10 -9 -8 ------- Run | Yrd Mat Min Exi Min Mat Active Infowar (turns) 1358 | 12 1344 2 . . . Sensors 2 | . . 2 . . . Terrain 1356 | 12 1344 . . . . Robot Analysis Total 3 | . 3 . . . . Derelict Logs Recovered 3 | . . 2 . 1 . Drone Launches . | . . . . . . Drone Recoveries . | . . . . . . Exploration | -11 -10 -10 -10 -9 -8 ------------- Run | Yrd Mat Min Exi Min Mat Turns Passed 4793 | 78 2220 1551 648 168 128 Spaces Moved 2483 | 37 1208 766 339 85 48 Core 14 | 14 . . . . . Treads . | . . . . . . Legs 2469 | 23 1208 766 339 85 48 Wheels . | . . . . . . Hover . | . . . . . . Flight . | . . . . . . Fastest Speed 50 | 50 120 190 190 190 190 Average Speed 166 | 100 144 190 190 190 190 Slowest Speed 190 | 120 190 190 190 190 190 Overloaded Moves . | . . . . . . Propulsion Burnouts . | . . . . . . Robots Hopped . | . . . . . . Potential Cave-ins 8 | . 8 . . . . Cave-ins Triggered 1 | . . . . . 1 Exploration Rate (%) 54 | 3 99 98 84 39 6 Regions Visited 5 Branch Regions 3 Pre-discovered Areas 5 | . 1 3 1 . . Known Exits Taken . | . . . . . . Unknown Exits Taken 5 | 1 1 1 1 1 . Scrap Searched 3 | . . 2 . 1 . Spaces Dug 17 | . 13 . . . 4 Terrain Destroyed 77 | . 58 15 . . 4 Melee 17 | . 13 . . . 4 Projectile . | . . . . . . AOE 60 | . 45 15 . . . Terrain Rammed . | . . . . . . Walls Destroyed . | . . . . . . Machines Disabled . | . . . . . . Actions | -11 -10 -10 -10 -9 -8 --------- Run | Yrd Mat Min Exi Min Mat Total 3026 | 58 1611 845 344 93 75 Wait 394 | . 310 58 4 5 17 Move 2478 | 36 1207 765 338 84 48 Hop . | . . . . . . Pick Up 28 | 6 17 2 . 2 1 Fast Attach 11 | 7 2 2 . . . Attach 4 | . 2 . . . 2 Detach 1 | . 1 . . . . Swap 22 | . 15 4 1 . 2 Drop 22 | . 14 5 1 2 . Fire 45 | 9 27 9 . . . Melee 19 | . 14 . . . 5 Ram . | . . . . . . Kick . | . . . . . . Crush . | . . . . . . Escape Stasis . | . . . . . . Rewire 2 | . 2 . . . . Trap . | . . . . . . Miscellaneous . | . . . . . . Route ------- -11/Scrapyard -10/Materials (discovered 6 exits: [*Mat x3] / *Min x2 / [*Sub]) -10/Mines (discovered 4 exits: [*Mat x2] / *Exi / [*Sub]) -10/Exiles -9/Mines -8/Materials History --------- Turn | Location | Event 14 | -11/Scrapyard | Discovered new exit (range 15) 79 | -11/Scrapyard | Entered Materials 153 | -10/Materials | Discovered new exit (range 15) 179 | -10/Materials | Discovered new exit (range 14) 310 | -10/Materials | Build established: Mutant 320 | -10/Materials | Discovered new exit (range 11) 412 | -10/Materials | Discovered new exit (range 11) 586 | -10/Materials | Discovered new exit (range 10) 735 | -10/Materials | Discovered new exit (range 8) 1630 | -10/Materials | Repaired Grenade Launcher 1669 | -10/Materials | Repaired Imp. Terrain Scanner 2299 | -10/Materials | Entered Mines 2299 | -10/Mines | Accompanied by 2 allies 2348 | -10/Mines | Met a Derelict bent on vengeance 2386 | -10/Mines | Discovered new exit (range 5) 2958 | -10/Mines | Learned location of Mines (-9) 3041 | -10/Mines | Learned location of Storage (-9) 3145 | -10/Mines | Discovered new exit (range 15) 3682 | -10/Mines | Found a damaged Exp. Sensor Array with a note attached 3686 | -10/Mines | Found Prototype Device 3686 | -10/Mines | Identified Exp. Sensor Array 3788 | -10/Mines | Discovered new exit (range 9) 3827 | -10/Mines | Deemed a non-threat by the Exiles lab entrance 3827 | -10/Mines | Discovered new exit (range 5) 3850 | -10/Mines | Entered Exiles 3850 | -10/Exiles | Accompanied by 2 allies 3898 | -10/Exiles | Met 8R-AWN 3930 | -10/Exiles | Met EX-HEX 4048 | -10/Exiles | Met EX-DEC 4087 | -10/Exiles | Visited The Gauntlet 4310 | -10/Exiles | Learned location of Zion (-6) 4357 | -10/Exiles | Met EX-BIN 4477 | -10/Exiles | Discovered new exit (range 10) 4498 | -10/Exiles | Entered Mines 4498 | -9/Mines | Accompanied by 2 allies 4531 | -9/Mines | Learned Materials stockpile data 4646 | -9/Mines | Discovered new exit (range 6) 4650 | -9/Mines | Assisted by bots powering up and referring to "LRC-V3" 4666 | -9/Mines | Entered Materials 4666 | -8/Materials | Accompanied by 5 allies 4666 | -8/Materials | Evolved 4 slots: Utility x3, Weapon x1 4794 | -8/Materials | Crushed by falling debris 4794 | -8/Materials | Self-destructed Last Messages --------------- 04784_ Connecting with Terminal... >>Trojan(Assimilate) Trojan loaded successfully. Testing... System interface override in place. >>Trojan(Botnet) Trojan loaded successfully. Testing... Terminal linked with 1 system. Awaiting botnet instructions. 04787_ U-05 Engineer builds a Wall. 04794_ The unstable cave ceiling collapses. 04794_ Crushed by falling debris. 04794_ Ion Engine destroyed. 04794_ System corrupted by crushing effect (+1). 04794_ Weapon Shielding destroyed. 04794_ EM Shotgun destroyed. 04794_ System corrupted by crushing effect (+4). 04794_ EM Shotgun destroyed. 04794_ System corrupted by crushing effect (+4). Map ----- +----------------------------------------------------+ | ??????????????????????????????????????? | | ?????????????????????????????#####????? | | ??????????????????????######## #????? | | ????????????????????### * [# #????? | | ????????????????????#"" # #????? | | ????????????????????#"T """ + #????? | | ????????????????????#"" """ # #????? | | ????????????????????### """ # #????? | | ??????????????????????# # #????? | | ??????????????????????######## #????? | | ?????????????????????????????# #????? | | ?????????????????????????????# #????? | | ?????????????????????????????# #????? | | ?????????????????????????????# #????? | | ?????????????????????????????# #????? | | ????????????????????????????## ##???? | | ????????????????????????????# #???? | | ????????????????????????????# #???? | | ????????????????????????????# " #???? | | ???????????o????????????????# #???? | | ????????????????????????????# #???? | | ??????????????????????????#####+#####?? | | ??????????????????????????# #?? | | ???????????##############?# #?? | | ???????????# ### #?? | | ???????????# T Y@# """ """ #?? | | ???????????? " " ### """ """ #?? | | ??????????????""" """ #?# """ """ #?? | | ???????????????"" """ ?# #?? | | ????????????????" """ #?# #?? | | ????????????????? "" #?######/####?? | | ????????????????" """ #???????? ???? | | ???????????????? "" #????????? ??? | | ??????????????????"" #?????????????? | | ?????????????????? " ??????????????? | | ??????????????????? ??????????????? | | ??????????????????######??????????????? | | ??????????????????????????????????????? | | ??????*???????????????????????????????? | | ??????????????????????????????????????? | | ??????????????????????????????????????? | | ??????????????????????????????????????? | | ??????????????????????????????????????? | | ??????????????????????????????????????? | | ??????????????????????????????????????? | | ??????????????????????????????????????? | | ??????????????????????????????????????? | | ??????????????????????????????????????? | | ??????????????????????????????????????? | | ??????????????????????????????????????? | +----------------------------------------------------+ Best States ------------- Heat Dissipation 45 Energy Generation 10 Energy Capacity 250 Matter Stores 300 Matter Capacity 300 Sight Range 16 Terrain Scan Range 16 Terrain Scan Density 10 Weapon Shielding 33 Evasion (%) 55 Item Schematics ----------------- Hcp. Storage Unit | -10/Mines | Hacked Robot Schematics ------------------ None Fabricated ------------ Nothing Repaired ---------- Grenade Launcher | 55% | -10/Materials Imp. Terrain Scanner | 81% | -10/Materials Studied --------- None Alien Tech Used ----------------- None Achievements -------------- None Challenges ------------ None Game ------ Seed DimensionalTimingMantle Manual? 0 Play Time 00:31:52 Cumulative 676.6 hours Start 2025.11.08 @ 17:55:39 End 2025.11.08 @ 18:32:04 Sessions 1 Manual Loads 0 Difficulty Rogue Special Mode None Game No. 469 Rogue 469 Adventurer 0 Explorer 0 Win Type - Total 1 Types 1/0/0/0/0/0/0/0/0/0 Lore% 62 Gallery% 66 Achievement% 39 Wizard Run 0 Options --------- Layout 1 ASCII 0 Keyboard 0 Movement Mouse Keybinds 0 Fullscreen 1 Font 20/SmallcapsGlow Map View 54x42 Zoom Use 0% Tactical HUD 1 Map Filters NONE Filters NONE Steam 1 RUN: 9ec5b139-af33-4655-8aeb-7b57480bdbbe